fUSD/lending_fUSD_20240324
["ID","MTS","AMOUNT","RATE_DAILY","PERIOD"]
[320322015,1711289449955,-1718.21,0.00019178,2]
[320322016,1711289449965,-735.72,0.00019178,2]
[320322017,1711289449974,-500.0,0.00019178,2]
[320322018,1711289449983,-1019.33,0.00019178,2]
[320322019,1711289449993,-500.0,0.00019178,2]
[320322020,1711289450002,-1884.56,0.00019178,2]
[320322021,1711289450012,-500.0,0.00019178,2]
[320322022,1711289450021,-500.0,0.00019178,2]
[320322023,1711289450031,-500.0,0.00019178,2]
[320322024,1711289450041,-500.0,0.00019178,2]
[320322025,1711289450050,-3639.72,0.00019178,2]
[320322026,1711289450060,-500.0,0.00019178,2]
[320322027,1711289450069,-500.0,0.00019178,2]
[320322028,1711289450079,-1131.31,0.00019178,2]
[320322029,1711289450088,-500.0,0.00019178,2]
[320322030,1711289450097,-2681.68,0.00019178,2]
[320322031,1711289450106,-500.0,0.00019178,2]
[320322032,1711289450116,-500.0,0.00019178,2]
[320322033,1711289450126,-617.27585721,0.00019178,2]
[320322034,1711289450136,-759.88,0.00019178,2]
[320322035,1711289450145,-500.0,0.00019178,2]
[320322036,1711289450155,-1686.25,0.00019178,2]
[320322037,1711289450166,-879.3,0.00019178,2]
[320322038,1711289450176,-792.28,0.00019178,2]
[320322039,1711289450186,-468.77090927,0.00019178,2]
[320322040,1711289450196,-500.0,0.00019178,2]
[320322041,1711289450208,-500.0,0.00019178,2]
[320322042,1711289450217,-500.0,0.00019178,2]
[320322043,1711289450227,-470.17198633,0.00019178,2]
[320322044,1711289450237,-1513.26,0.00019178,2]
[320322045,1711289450246,-551.24,0.00019178,2]
[320322046,1711289450259,-893.55,0.00019178,2]
[320322047,1711289450269,-500.0,0.00019178,2]
[320322048,1711289450279,-938.72,0.00019178,2]
[320322049,1711289450288,-500.0,0.00019178,2]
[320322050,1711289450298,-500.0,0.00019178,2]
[320322051,1711289450308,-1161.17,0.00019178,2]
[320322052,1711289450318,-917.5,0.00019178,2]
[320322053,1711289450328,-500.0,0.00019178,2]
[320322054,1711289450338,-500.0,0.00019178,2]
[320322055,1711289450347,-500.0,0.00019178,2]
[320322056,1711289450357,-500.0,0.00019178,2]
[320322057,1711289450367,-500.0,0.00019178,2]
[320322058,1711289450377,-1228.85,0.00019178,2]
[320322059,1711289450391,-1308.2,0.00019178,2]
[320322060,1711289450400,-500.0,0.00019178,2]
[320322061,1711289450410,-500.0,0.00019178,2]
[320322062,1711289450420,-500.0,0.00019178,2]
[320322063,1711289450437,-1115.24,0.00019178,2]
[320322064,1711289450446,-500.0,0.00019178,2]
[320322065,1711289450456,-694.87,0.00019178,2]
[320322066,1711289450466,-500.0,0.00019178,2]
[320322067,1711289450476,-9339.75,0.00019178,2]
[320322068,1711289450485,-3540.81,0.00019178,2]
[320322069,1711289450495,-500.0,0.00019178,2]
[320322070,1711289450505,-500.0,0.00019178,2]
[320322071,1711289450514,-500.0,0.00019178,2]
[320322072,1711289450524,-500.0,0.00019178,2]
[320322073,1711289450534,-500.0,0.00019178,2]
[320322074,1711289450544,-1929.06,0.00019178,2]
[320322075,1711289450554,-533.7,0.00019178,2]
[320322076,1711289450564,-500.0,0.00019178,2]
[320322077,1711289450574,-500.0,0.00019178,2]
[320322078,1711289450583,-500.0,0.00019178,2]
[320322079,1711289450593,-500.0,0.00019178,2]
[320322080,1711289450603,-500.0,0.00019178,2]
[320322081,1711289450612,-500.0,0.00019178,2]
[320322082,1711289450622,-500.0,0.00019178,2]
[320322083,1711289450632,-500.0,0.00019178,2]
[320322084,1711289450642,-500.0,0.00019178,2]
[320322086,1711289450652,-2542.73723053,0.00019185,2]
[320322087,1711289450662,-197.05989579,0.00019194,2]
[320322088,1711289450672,-433.69,0.000192,2]
[320322089,1711289450681,-402.95,0.000192,2]
[320322090,1711289450691,-829.17,0.000192,2]
[320322091,1711289450701,-25217.825,0.00019212,2]
[320322092,1711289450711,-180.0,0.00019288,2]
[320322093,1711289450721,-1466.62090093,0.00019328,2]
[320322094,1711289451049,-637.49490772,0.00019328,2]
[320322095,1711289451951,-438.62142188,0.00019328,2]
[320322096,1711289451962,-2913.37857812,0.00019349,2]
[320322109,1711289534982,-265.0,0.0001662,2]
[320322113,1711289888578,-400.0,0.00016619,2]
[320322114,1711289973695,271.27,0.00015833,2]
[320322115,1711289983483,1000.0,0.00016,2]
[320322116,1711290033050,1030.74959163,0.00016,2]
[320322117,1711290047161,425.62489594,0.00016,2]
[320322120,1711290313509,1049.34,0.00016,2]
[320322124,1711290414179,276.18,0.00015505,2]
[320322920,1711290570146,1319.426542,0.00016,2]
[320323079,1711290632341,-484.31503574,0.00016091,2]
[320323081,1711290632351,-155.0,0.00016092,2]
[320323083,1711290632360,-1000.0,0.000161,2]
[320323084,1711290632370,-171.9851007,0.000161,2]
[320323085,1711290632379,-1000.0,0.000162,2]
[320323086,1711290632388,-1000.0,0.000163,2]
[320323087,1711290632397,-1000.0,0.000165,2]
[320323088,1711290632407,-1000.0,0.000166,2]
[320323089,1711290632416,-1000.0,0.000167,2]
[320323090,1711290632425,-1000.0,0.000169,2]
[320323091,1711290632434,-1000.0,0.00017,2]
[320323092,1711290632443,-1174.38,0.00017293,2]
[320323093,1711290632452,-250.0,0.00017318,2]
[320323094,1711290632462,-856.0,0.00017455,2]
[320323095,1711290632471,-250.0,0.00017595,2]
[320323096,1711290632479,-232.26,0.00017658,2]
[320323097,1711290632489,-276.18,0.00017769,2]
[320323098,1711290632498,-171.98510068,0.00017879,2]
[320323099,1711290632507,-176.22,0.00017906,2]
[320323100,1711290632516,-180.0,0.00017951,2]
[320323101,1711290632525,-1000.0,0.00018,2]
[320323102,1711290632534,-230.86,0.0001851,2]
[320323103,1711290632544,-713.78848873,0.00018573,2]
[320323104,1711290632554,-150.89202832,0.00018574,2]
[320323105,1711290632563,-168.95075666,0.00018576,2]
[320323106,1711290632572,-713.78848873,0.000186,2]
[320323107,1711290632581,-195.39569363,0.00018804,2]
[320323108,1711290632590,-177.01482047,0.00018821,2]
[320323109,1711290632599,-235.7874779,0.00018833,2]
[320323110,1711290632608,-11367.09856506,0.00018899,2]
[320323111,1711290632621,-3150.95,0.00018899,2]
[320323112,1711290632632,-19816.20613015,0.00018899,2]
[320323113,1711290632644,-5578.7714334,0.00018899,2]
[320323117,1711290632678,-1040.50535985,0.00018899,2]
[320323119,1711290632689,-19669.95722834,0.00018899,2]
[320323122,1711290632701,-6300.1,0.00018899,2]
[320323126,1711290632728,-858.49621984,0.00018899,2]
[320323170,1711290638367,-250.0,0.00017267,2]
[320323172,1711290638376,-82.77,0.00018899,2]
[320323174,1711290638388,-11197.19612447,0.00018899,2]
[320323176,1711290638400,-2408.02152946,0.00018899,2]
[320323180,1711290638424,-1120.524,0.00018899,2]
[320323182,1711290638436,-3854.83014963,0.00018899,2]
[320323184,1711290638449,-46448.92940987,0.00018899,2]
[320323189,1711290638483,-437.16747386,0.00018899,2]
[320323191,1711290638494,-12345.0623473,0.00018899,2]
[320323193,1711290638505,-40188.70718728,0.00018899,2]
[320323199,1711290638573,-18479.73061947,0.00018899,2]
[320323201,1711290638585,-22013.3674942,0.00018899,2]
[320323211,1711290638713,-41905.36304336,0.00018899,2]
[320323212,1711290638722,-415.084625,0.00018904,2]
[320323213,1711290638731,-156.75847385,0.00018956,2]
[320323214,1711290638740,-1467.60065329,0.00019,2]
[320323215,1711290638750,-1250.0,0.00019,3]
[320323216,1711290638759,-2000.0,0.00019,2]
[320323217,1711290638768,-1000.0,0.00019,2]
[320323218,1711290638778,-1134.39744524,0.00019076,2]
[320323219,1711290638788,-597.854,0.00019136,2]
[320323220,1711290638797,-458.48265888,0.00019178,2]
[320323221,1711290638806,-500.0,0.00019178,2]
[320323222,1711290638815,-506.30018403,0.00019178,2]
[320323223,1711290638824,-500.0,0.00019178,2]
[320323224,1711290638833,-500.0,0.00019178,2]
[320323225,1711290638842,-500.0,0.00019178,2]
[320323226,1711290638851,-500.0,0.00019178,2]
[320323227,1711290638860,-500.0,0.00019178,2]
[320323228,1711290638869,-500.0,0.00019178,2]
[320323229,1711290638878,-500.0,0.00019178,2]
[320323230,1711290638887,-1165.36,0.00019178,2]
[320323231,1711290638896,-203.16,0.00019178,2]
[320323232,1711290638905,-500.0,0.00019178,2]
[320323233,1711290638914,-500.0,0.00019178,2]
[320323234,1711290638925,-500.0,0.00019178,2]
[320323235,1711290638935,-203.04662261,0.00019178,2]
[320323236,1711290638944,-200.0,0.00019178,2]
[320323237,1711290638953,-14041.49,0.00019178,2]
[320323238,1711290638963,-161.9,0.0001918,2]
[320323239,1711290638972,-340.12700933,0.00019199,2]
[320323240,1711290638981,-162.35778914,0.00019199,2]
[320323241,1711290638991,-23000.00000001,0.000192,2]
[320323242,1711290639000,-3710.96251412,0.000192,2]
[320323243,1711290639009,-500.0,0.0001921,2]
[320323244,1711290639018,-500.0,0.0001921,2]
[320323245,1711290639028,-500.0,0.0001921,2]
[320323246,1711290639037,-500.0,0.0001921,2]
[320323247,1711290639046,-500.0,0.0001921,2]
[320323248,1711290639055,-500.0,0.0001921,2]
[320323249,1711290639064,-500.0,0.0001921,2]
[320323250,1711290639073,-287.36790748,0.0001921,2]
[320323251,1711290639083,-500.0,0.0001921,2]
[320323252,1711290639096,-500.0,0.0001921,2]
[320323253,1711290639105,-500.0,0.0001921,2]
[320323254,1711290639114,-500.0,0.0001921,2]
[320323255,1711290639122,-500.0,0.0001921,2]
[320323256,1711290639132,-500.0,0.0001921,2]
[320323257,1711290639141,-500.0,0.0001921,2]
[320323258,1711290639150,-500.0,0.0001921,2]
[320323259,1711290639158,-500.0,0.0001921,2]
[320323260,1711290639168,-500.0,0.0001921,2]
[320323261,1711290639178,-500.0,0.0001921,2]
[320323262,1711290639186,-237.36,0.0001921,2]
[320323263,1711290639196,-500.0,0.0001921,2]
[320323264,1711290639204,-500.0,0.0001921,2]
[320323265,1711290639213,-500.0,0.0001921,2]
[320323266,1711290639221,-571.03939104,0.0001921,2]
[320323267,1711290639229,-500.0,0.0001921,2]
[320323268,1711290639238,-500.0,0.0001921,2]
[320323269,1711290639246,-500.0,0.0001921,2]
[320323270,1711290639255,-500.0,0.0001921,2]
[320323271,1711290639263,-500.0,0.0001921,2]
[320323272,1711290639273,-500.0,0.0001921,2]
[320323273,1711290639282,-500.0,0.0001921,2]
[320323274,1711290639291,-500.0,0.0001921,2]
[320323275,1711290639299,-150.0,0.0001921,2]
[320323276,1711290639308,-500.0,0.0001921,2]
[320323277,1711290639316,-500.0,0.0001921,2]
[320323278,1711290639325,-500.0,0.0001921,2]
[320323279,1711290639333,-280.84,0.0001921,2]
[320323280,1711290639341,-500.0,0.0001921,2]
[320323281,1711290639350,-500.0,0.0001921,2]
[320323282,1711290639359,-500.0,0.0001921,2]
[320323283,1711290639368,-500.0,0.0001921,2]
[320323284,1711290639378,-500.0,0.0001921,2]
[320323285,1711290639387,-500.0,0.0001921,2]
[320323286,1711290639397,-499.50627321,0.0001921,2]
[320323287,1711290639406,-500.0,0.0001921,2]
[320323288,1711290639415,-500.0,0.0001921,2]
[320323289,1711290639425,-500.0,0.0001921,2]
[320323290,1711290639434,-500.0,0.0001921,2]
[320323291,1711290639443,-500.0,0.0001921,2]
[320323292,1711290639452,-500.0,0.0001921,2]
[320323293,1711290639462,-500.0,0.0001921,2]
[320323294,1711290639472,-500.0,0.0001921,2]
[320323295,1711290639492,-500.0,0.0001921,2]
[320323296,1711290639501,-500.0,0.0001921,2]
[320323297,1711290639511,-500.0,0.0001921,2]
[320323298,1711290639520,-500.0,0.0001921,2]
[320323299,1711290639530,-500.0,0.0001921,2]
[320323300,1711290639539,-500.0,0.0001921,2]
[320323301,1711290639549,-500.0,0.0001921,2]
[320323302,1711290639559,-500.0,0.0001921,2]
[320323303,1711290639568,-500.0,0.0001921,2]
[320323304,1711290639577,-500.0,0.0001921,2]
[320323305,1711290639587,-500.0,0.0001921,2]
[320323306,1711290639598,-493.78666335,0.0001921,2]
[320323307,1711290639608,-500.0,0.0001921,2]
[320323308,1711290639617,-4186.65,0.0001921,2]
[320323309,1711290639627,-500.0,0.0001921,2]
[320323310,1711290639636,-500.0,0.0001921,2]
[320323311,1711290639646,-500.0,0.0001921,2]
[320323312,1711290639655,-500.0,0.0001921,2]
[320323313,1711290639664,-500.0,0.0001921,2]
[320323314,1711290639674,-500.0,0.0001921,2]
[320323315,1711290639947,-604.34,0.0001921,2]
[320323316,1711290639958,-500.0,0.0001921,2]
[320323317,1711290639968,-500.0,0.0001921,2]
[320323318,1711290639978,-500.0,0.0001921,2]
[320323319,1711290639987,-638.32986448,0.0001921,2]
[320323320,1711290639997,-1928.56,0.0001921,2]
[320323321,1711290640007,-500.0,0.0001921,2]
[320323322,1711290640016,-500.0,0.0001921,2]
[320323323,1711290640025,-1542.29,0.0001921,2]
[320323324,1711290640034,-267.79162439,0.0001921,2]
[320323325,1711290640044,-500.0,0.0001921,2]
[320323326,1711290640053,-500.0,0.0001921,2]
[320323327,1711290640062,-500.0,0.0001921,2]
[320323328,1711290640072,-746.4,0.0001921,2]
[320323329,1711290640082,-500.0,0.0001921,2]
[320323330,1711290640093,-500.0,0.0001921,2]
[320323331,1711290640102,-500.0,0.0001921,2]
[320323332,1711290640111,-500.0,0.0001921,2]
[320323333,1711290640121,-500.0,0.0001921,2]
[320323335,1711290640130,-500.0,0.0001921,2]
[320323336,1711290640140,-3488.06,0.0001921,2]
[320323338,1711290640149,-500.0,0.0001921,2]
[320323339,1711290640158,-500.0,0.0001921,2]
[320323340,1711290640169,-728.22,0.0001921,2]
[320323341,1711290640178,-500.0,0.0001921,2]
[320323342,1711290640187,-500.0,0.0001921,2]
[320323343,1711290640195,-564.86199269,0.0001921,2]
[320323344,1711290640205,-895.17,0.0001921,2]
[320323345,1711290640214,-1187.61,0.0001921,2]
[320323346,1711290640223,-500.0,0.0001921,2]
[320323347,1711290640232,-500.0,0.0001921,2]
[320323348,1711290640241,-606.84,0.0001921,2]
[320323350,1711290640250,-500.0,0.0001921,2]
[320323352,1711290640259,-500.0,0.0001921,2]
[320323353,1711290640267,-500.0,0.0001921,2]
[320323355,1711290640277,-500.0,0.00019211,2]
[320323357,1711290640286,-611.26,0.00019211,2]
[320323359,1711290640295,-500.0,0.00019211,2]
[320323360,1711290640305,-450.85382622,0.00019211,2]
[320323362,1711290640314,-500.0,0.00019211,2]
[320323363,1711290640324,-367.01210413,0.00019211,2]
[320323365,1711290640333,-540.67,0.00019211,2]
[320323367,1711290640342,-500.0,0.00019211,2]
[320323369,1711290640351,-500.0,0.00019211,2]
[320323370,1711290640360,-598.31,0.00019211,2]
[320323373,1711290640370,-581.69,0.00019211,2]
[320323375,1711290640378,-1278.33,0.00019211,2]
[320323377,1711290640388,-9014.0,0.00019211,2]
[320323380,1711290640397,-901.05,0.00019211,2]
[320323383,1711290640406,-500.0,0.00019211,2]
[320323386,1711290640415,-154.34236366,0.0001924,2]
[320323388,1711290640426,-154.34236366,0.0001925,2]
[320323391,1711290640436,-180.0,0.00019288,2]
[320323394,1711290640445,-713.78848873,0.00019313,2]
[320323397,1711290640454,-29781.92529642,0.0001933,3]
[320323401,1711290640468,-20218.07470358,0.0001933,3]
[320323404,1711290640477,-713.78848873,0.00019341,2]
[320323406,1711290640486,-1013.34,0.00019346,2]
[320323408,1711290640495,-500.0,0.00019346,2]
[320323410,1711290640505,-500.0,0.00019346,2]
[320323411,1711290640514,-500.0,0.00019346,2]
[320323413,1711290640523,-500.0,0.00019346,2]
[320323415,1711290640533,-500.0,0.00019346,2]
[320323418,1711290640542,-500.0,0.00019346,2]
[320323421,1711290640552,-802.35,0.00019346,2]
[320323424,1711290640561,-500.0,0.00019346,2]
[320323427,1711290640571,-500.0,0.00019346,2]
[320323429,1711290640582,-1856.77,0.00019346,2]
[320323432,1711290640591,-1646.61,0.00019346,2]
[320323435,1711290640600,-667.14,0.00019346,2]
[320323438,1711290640610,-500.0,0.00019346,2]
[320323440,1711290640619,-902.93,0.00019346,2]
[320323443,1711290640628,-2676.03,0.00019346,2]
[320323445,1711290640637,-705.06,0.00019346,2]
[320323447,1711290640647,-759.27,0.00019346,2]
[320323449,1711290640656,-500.0,0.00019346,2]
[320323451,1711290640665,-500.0,0.00019346,2]
[320323453,1711290640675,-500.0,0.00019346,2]
[320323456,1711290640684,-500.0,0.00019346,2]
[320323459,1711290640694,-879.27,0.00019346,2]
[320323462,1711290640703,-842.66,0.00019346,2]
[320323465,1711290640712,-500.0,0.00019346,2]
[320323468,1711290640722,-665.92,0.00019346,2]
[320323471,1711290640731,-528.28,0.00019346,2]
[320323474,1711290640740,-500.0,0.00019346,2]
[320323477,1711290640750,-1848.69,0.00019346,2]
[320323480,1711290640759,-500.0,0.00019346,2]
[320323483,1711290640768,-1253.69,0.00019346,2]
[320323486,1711290640778,-500.0,0.00019346,2]
[320323489,1711290640788,-500.0,0.00019346,2]
[320323492,1711290640797,-500.0,0.00019346,2]
[320323495,1711290640807,-500.0,0.00019346,2]
[320323498,1711290640817,-8950.6,0.00019346,2]
[320323501,1711290640827,-500.0,0.00019346,2]
[320323504,1711290640836,-500.0,0.00019346,2]
[320323507,1711290640846,-500.0,0.00019347,2]
[320323510,1711290640855,-500.0,0.00019347,2]
[320323513,1711290640865,-500.0,0.00019347,2]
[320323516,1711290640874,-500.0,0.00019347,2]
[320323519,1711290640883,-269.52680774,0.00019347,2]
[320323522,1711290640896,-230.47319226,0.00019347,2]
[320323525,1711290640905,-500.0,0.00019347,2]
[320323528,1711290640915,-500.0,0.00019347,2]
[320323531,1711290640926,-500.0,0.00019347,2]
[320323534,1711290640935,-786.33186701,0.00019347,2]
[320323539,1711290640953,-172.53813299,0.00019347,2]
[320323542,1711290640963,-546.57,0.00019347,2]
[320323545,1711290640972,-500.0,0.00019347,2]
[320323548,1711290640982,-500.0,0.00019347,2]
[320323551,1711290640991,-500.0,0.00019347,2]
[320323554,1711290641001,-239.00983132,0.00019347,2]
[320323597,1711290641266,-241.47809661,0.00018898,2]
[320323599,1711290641276,-2210.65016868,0.00019347,2]
[320323601,1711290641285,-500.0,0.00019347,2]
[320323603,1711290641294,-500.0,0.00019347,2]
[320323605,1711290641304,-628.38,0.00019347,2]
[320323607,1711290641313,-1274.5,0.00019347,2]
[320323609,1711290641322,-500.0,0.00019347,2]
[320323611,1711290641331,-428.9917347,0.00019347,2]
[320323614,1711290641352,-71.0082653,0.00019347,2]
[320323616,1711290641361,-684.29,0.00019347,2]
[320323618,1711290641370,-286.09180292,0.00019347,2]
[320323620,1711290641382,-309.45449993,0.00019347,2]
[320323623,1711290641393,-682.5458745,0.00019347,2]
[320323635,1711290641503,-527.94782265,0.00019347,2]
[320323637,1711290641513,-976.85,0.00019347,2]
[320323639,1711290641523,-1029.59904667,0.00019347,2]
[320323642,1711290641537,-54.57095333,0.00019347,2]
[320323644,1711290641547,-283.45165917,0.00019347,2]
[320323646,1711290641560,-372.58027979,0.00019347,2]
[320323649,1711290641574,-959.95806104,0.00019347,2]
[320323651,1711290641586,-40.14883836,0.00019347,2]
[320323654,1711290641599,-459.85116164,0.00019347,2]
[320323656,1711290641611,-217.56383806,0.00019347,2]
[320323658,1711290641624,-1232.64616194,0.00019347,2]
[320323660,1711290641635,-16.11816206,0.00019347,2]
[320323706,1711290643617,-500.0,0.00019346,2]
[320323707,1711290643628,-502.57019349,0.00019346,2]
[320323708,1711290643639,-500.0,0.00019346,2]
[320323709,1711290643649,-483.88183794,0.00019347,2]
[320323710,1711290643660,-899.61,0.00019347,2]
[320323711,1711290643671,-1225.7,0.00019347,2]
[320323712,1711290643681,-502.04765616,0.00019347,2]
[320323713,1711290643692,-500.0,0.00019347,2]
[320323714,1711290643703,-1068.77,0.00019347,2]
[320323715,1711290643714,-3393.27,0.00019347,2]
[320323716,1711290643724,-500.0,0.00019347,2]
[320323717,1711290643736,-500.0,0.00019347,2]
[320323718,1711290643746,-2550.11,0.00019347,2]
[320323719,1711290643756,-3544.77,0.00019348,2]
[320323720,1711290643766,-500.0,0.00019348,2]
[320323721,1711290643776,-574.96,0.00019348,2]
[320323722,1711290643785,-1049.81,0.00019348,2]
[320323723,1711290643795,-500.0,0.00019348,2]
[320323724,1711290643804,-6548.61,0.00019348,2]
[320323725,1711290643814,-2000.0,0.00019349,2]
[320323727,1711290643824,-200.0,0.00019349,2]
[320323728,1711290643833,-2000.0,0.00019349,2]
[320323729,1711290643843,-200.0,0.00019349,2]
[320323730,1711290643852,-3000.0,0.00019349,2]
[320323731,1711290643863,-195.39569363,0.00019351,2]
[320323732,1711290643877,-235.7874779,0.00019376,2]
[320323733,1711290643887,-300.0,0.00019404,2]
[320323734,1711290643897,-1400.0,0.00019404,2]
[320323735,1711290643907,-2012.65,0.00019451,2]
[320323736,1711290643916,-500.0,0.00019451,2]
[320323738,1711290643927,-500.0,0.00019451,2]
[320323739,1711290643937,-500.0,0.00019451,2]
[320323740,1711290643947,-500.0,0.00019451,2]
[320323741,1711290643957,-500.0,0.00019451,2]
[320323742,1711290643967,-1220.32,0.00019451,2]
[320323743,1711290643977,-500.0,0.00019451,2]
[320323744,1711290643987,-572.75,0.00019451,2]
[320323745,1711290643996,-500.0,0.00019451,2]
[320323746,1711290644006,-500.0,0.00019451,2]
[320323747,1711290644015,-500.0,0.00019451,2]
[320323748,1711290644025,-500.0,0.00019451,2]
[320323749,1711290644034,-596.66569662,0.00019451,2]
[320323750,1711290644043,-500.0,0.00019451,2]
[320323751,1711290644053,-500.0,0.00019451,2]
[320323752,1711290644062,-233.47412988,0.00019451,2]
[320323753,1711290644071,-500.0,0.00019451,2]
[320323754,1711290644080,-500.0,0.00019451,2]
[320323755,1711290644090,-587.10689738,0.00019451,2]
[320323756,1711290644103,-583.05646546,0.00019451,2]
[320323757,1711290644112,-500.0,0.00019451,2]
[320323758,1711290644121,-500.0,0.00019451,2]
[320323759,1711290644131,-272.25248103,0.00019451,2]
[320323760,1711290644140,-500.0,0.00019451,2]
[320323761,1711290644150,-500.0,0.00019451,2]
[320323762,1711290644160,-500.0,0.00019451,2]
[320323763,1711290644170,-500.0,0.00019451,2]
[320323764,1711290644180,-350.9,0.00019451,2]
[320323765,1711290644190,-324.46163055,0.00019451,2]
[320323766,1711290644199,-638.48,0.00019451,2]
[320323767,1711290644208,-500.0,0.00019451,2]
[320323768,1711290644217,-1826.71,0.00019451,2]
[320323769,1711290644226,-500.0,0.00019451,2]
[320323770,1711290644235,-500.0,0.00019452,2]
[320323771,1711290644245,-500.0,0.00019452,2]
[320323772,1711290644254,-298.76,0.00019452,2]
[320323773,1711290644263,-500.0,0.00019452,2]
[320323774,1711290644273,-472.03418416,0.00019452,2]
[320323775,1711290644282,-500.0,0.00019452,2]
[320323776,1711290644291,-500.0,0.00019452,2]
[320323777,1711290644300,-500.0,0.00019452,2]
[320323778,1711290644309,-1165.36,0.00019452,2]
[320323779,1711290644318,-319.51215534,0.00019452,2]
[320323780,1711290644327,-605.2758129,0.00019452,2]
[320323781,1711290644336,-500.0,0.00019452,2]
[320323782,1711290644346,-528.39504558,0.00019453,2]
[320323783,1711290644354,-200.0,0.00019468,2]
[320323784,1711290644364,-167.6272744,0.00019474,2]
[320323785,1711290644373,-177.35390621,0.00019476,2]
[320323786,1711290644383,-500.0,0.00019484,2]
[320323787,1711290644393,-500.0,0.00019484,2]
[320323788,1711290644402,-500.0,0.00019484,2]
[320323789,1711290644411,-500.0,0.00019484,2]
[320323790,1711290644420,-500.0,0.00019484,2]
[320323791,1711290644430,-500.0,0.00019484,2]
[320323792,1711290644439,-500.0,0.00019484,2]
[320323793,1711290644449,-500.0,0.00019484,2]
[320323794,1711290644458,-500.0,0.00019484,2]
[320323795,1711290644467,-500.0,0.00019484,2]
[320323796,1711290644476,-500.0,0.00019484,2]
[320323797,1711290644485,-500.0,0.00019484,2]
[320323798,1711290644494,-500.0,0.00019484,2]
[320323799,1711290644503,-500.0,0.00019484,2]
[320323800,1711290644511,-500.0,0.00019484,2]
[320323801,1711290644520,-500.0,0.00019484,2]
[320323802,1711290644530,-500.0,0.00019484,2]
[320323803,1711290644539,-500.0,0.00019484,2]
[320323804,1711290644548,-500.0,0.00019484,2]
[320323805,1711290644557,-500.0,0.00019484,2]
[320323806,1711290644566,-500.0,0.00019484,2]
[320323807,1711290644576,-500.0,0.00019484,2]
[320323808,1711290644585,-500.0,0.00019484,2]
[320323809,1711290644594,-500.0,0.00019484,2]
[320323810,1711290644603,-500.0,0.00019484,2]
[320323811,1711290644612,-500.0,0.00019484,2]
[320323812,1711290644621,-500.0,0.00019484,2]
[320323813,1711290644630,-150.0,0.00019484,2]
[320323814,1711290644639,-500.0,0.00019484,2]
[320323815,1711290644648,-500.0,0.00019484,2]
[320323816,1711290644657,-500.0,0.00019484,2]
[320323817,1711290644667,-500.0,0.00019484,2]
[320323818,1711290644678,-500.0,0.00019484,2]
[320323819,1711290644686,-298.56576106,0.00019484,2]
[320323820,1711290644704,-500.0,0.00019484,2]
[320323821,1711290644716,-500.0,0.00019484,2]
[320323822,1711290644727,-500.0,0.00019484,2]
[320323823,1711290644736,-500.0,0.00019484,2]
[320323824,1711290644746,-500.0,0.00019484,2]
[320323825,1711290644755,-500.0,0.00019484,2]
[320323826,1711290644765,-500.0,0.00019484,2]
[320323827,1711290644774,-634.04865953,0.00019484,2]
[320323828,1711290644784,-500.0,0.00019484,2]